[Event "Betsys MČR v online bleskovém šachu 2021"]
[Site "Chess.com"]
[Date "2021.04.17"]
[Round "6"]
[White "Bavorak15"]
[Black "Millbo64"]
[Result "1/2-1/2"]
[WhiteElo "1611"]
[BlackElo "1992"]
[TimeControl "180+1"]
[EndTime "9:58:41 PDT"]
[Termination "Remíza opakováním pozice"]

1. e4 {[%clk 0:03:00.9]} 1... c6 {[%clk 0:02:59.2]} 2. d4 {[%clk 0:03:00.3]}
2... d5 {[%clk 0:02:59.4]} 3. Nc3 {[%clk 0:03:00.9]} 3... dxe4 {[%clk
0:02:57.8]} 4. Nxe4 {[%clk 0:03:01.8]} 4... Bf5 {[%clk 0:02:57.9]} 5. Ng3 {[%clk
0:03:02.3]} 5... Bg6 {[%clk 0:02:58.1]} 6. h4 {[%clk 0:03:02.8]} 6... h6 {[%clk
0:02:57.1]} 7. h5 {[%clk 0:03:03.1]} 7... Bh7 {[%clk 0:02:57.3]} 8. Nf3 {[%clk
0:03:03.5]} 8... Nf6 {[%clk 0:02:56.1]} 9. Bd3 {[%clk 0:03:03.5]} 9... Bxd3
{[%clk 0:02:55.6]} 10. Qxd3 {[%clk 0:03:04.4]} 10... e6 {[%clk 0:02:56.2]} 11.
c4 {[%clk 0:02:52.8]} 11... Nbd7 {[%clk 0:02:55.7]} 12. Ne4 {[%clk 0:02:45.7]}
12... Nxe4 {[%clk 0:02:54.7]} 13. Qxe4 {[%clk 0:02:46.6]} 13... Nf6 {[%clk
0:02:54.8]} 14. Qd3 {[%clk 0:02:41.4]} 14... Bd6 {[%clk 0:02:52.6]} 15. Be3
{[%clk 0:02:30]} 15... Qc7 {[%clk 0:02:47.8]} 16. O-O-O {[%clk 0:02:10.1]} 16...
O-O-O {[%clk 0:02:46.2]} 17. Qb3 {[%clk 0:01:59.5]} 17... Bf4 {[%clk 0:02:33.3]}
18. Kb1 {[%clk 0:01:36.4]} 18... Bxe3 {[%clk 0:02:32.4]} 19. fxe3 {[%clk
0:01:37.3]} 19... Ne4 {[%clk 0:02:31]} 20. Ne5 {[%clk 0:01:31.2]} 20... Nf2
{[%clk 0:02:28.3]} 21. Rhf1 {[%clk 0:01:27.5]} 21... Nxd1 {[%clk 0:02:27.4]} 22.
Rxf7 {[%clk 0:01:27.4]} 22... Qb6 {[%clk 0:02:27.4]} 23. Qxd1 {[%clk 0:01:23.5]}
23... Qa5 {[%clk 0:02:19.8]} 24. c5 {[%clk 0:01:06.8]} 24... Qxc5 {[%clk
0:02:12.4]} 25. Qb3 {[%clk 0:01:00.7]} 25... Qb6 {[%clk 0:02:08.3]} 26. Qxe6+
{[%clk 0:01:00.5]} 26... Kb8 {[%clk 0:02:08.6]} 27. Nd7+ {[%clk 0:01:00.1]}
27... Rxd7 {[%clk 0:02:07.3]} 28. Qxd7 {[%clk 0:01:00.7]} 28... Rd8 {[%clk
0:02:02]} 29. Qe7 {[%clk 0:00:57]} 29... c5 {[%clk 0:01:53.3]} 30. Qe5+ {[%clk
0:00:47.6]} 30... Ka8 {[%clk 0:01:51.4]} 31. Qxc5 {[%clk 0:00:42.7]} 31... Qe6
{[%clk 0:01:49.2]} 32. Rf8 {[%clk 0:00:39.9]} 32... Qd7 {[%clk 0:01:21.1]} 33.
e4 {[%clk 0:00:20.8]} 33... a6 {[%clk 0:01:18.9]} 34. e5 {[%clk 0:00:16]} 34...
Rxf8 {[%clk 0:01:04.2]} 35. Qxf8+ {[%clk 0:00:15.2]} 35... Ka7 {[%clk
0:01:04.6]} 36. Qc5+ {[%clk 0:00:15.1]} 36... b6 {[%clk 0:01:04.2]} 37. Qd6
{[%clk 0:00:14.4]} 37... Qf7 {[%clk 0:00:47.6]} 38. e6 {[%clk 0:00:12.5]} 38...
Qf1+ {[%clk 0:00:39]} 39. Kc2 {[%clk 0:00:13]} 39... Qxg2+ {[%clk 0:00:39.2]}
40. Kc3 {[%clk 0:00:09.3]} 40... Qf3+ {[%clk 0:00:37.1]} 41. Kc2 {[%clk
0:00:08.9]} 41... Qe2+ {[%clk 0:00:36.2]} 42. Kb3 {[%clk 0:00:08]} 42... Qd1+
{[%clk 0:00:34.5]} 43. Kc3 {[%clk 0:00:07.8]} 43... Qc1+ {[%clk 0:00:31.3]} 44.
Kd3 {[%clk 0:00:07.8]} 44... Qb1+ {[%clk 0:00:28.7]} 45. Ke3 {[%clk 0:00:07.8]}
45... Qe1+ {[%clk 0:00:25]} 46. Kf4 {[%clk 0:00:05.1]} 46... Qf2+ {[%clk
0:00:20.3]} 47. Ke5 {[%clk 0:00:05.1]} 47... Qg3+ {[%clk 0:00:18.8]} 48. Kd5
{[%clk 0:00:05.1]} 48... Qf3+ {[%clk 0:00:19.1]} 49. Kc4 {[%clk 0:00:05.1]}
49... Qe2+ {[%clk 0:00:17.9]} 50. Kd5 {[%clk 0:00:04.3]} 50... Qf3+ {[%clk
0:00:14.3]} 51. Kc4 {[%clk 0:00:04.3]} 51... Qe2+ {[%clk 0:00:14.5]} 52. Kc3
{[%clk 0:00:03.5]} 52... Qe1+ {[%clk 0:00:13.6]} 53. Kd3 {[%clk 0:00:03.3]}
53... Qd1+ {[%clk 0:00:13.1]} 54. Ke3 {[%clk 0:00:03.4]} 54... Qc1+ {[%clk
0:00:12.8]} 55. Kd3 {[%clk 0:00:03.5]} 55... Qf1+ {[%clk 0:00:11.2]} 56. Kc3
{[%clk 0:00:03.7]} 56... Qf3+ {[%clk 0:00:10.4]} 57. Kd2 {[%clk 0:00:03.7]}
57... Qg2+ {[%clk 0:00:09.3]} 58. Kd3 {[%clk 0:00:03.9]} 58... Qh3+ {[%clk
0:00:08.7]} 59. Kc2 {[%clk 0:00:02.7]} 59... Qf5+ {[%clk 0:00:08]} 60. Kc3
{[%clk 0:00:02.7]} 60... Qf3+ {[%clk 0:00:06.7]} 1/2-1/2

[Event "Betsys MČR v online bleskovém šachu 2021"]
[Site "Chess.com"]
[Date "2021.04.17"]
[Round "6"]
[White "MatyldaCZ"]
[Black "czechfant94"]
[Result "1-0"]
[WhiteElo "1404"]
[BlackElo "1595"]
[TimeControl "180+1"]
[EndTime "9:58:41 PDT"]
[Termination "Uživatel MatyldaCZ zvítězil matem"]

1. e4 {[%clk 0:03:00.9]} 1... e5 {[%clk 0:02:59.6]} 2. Nf3 {[%clk 0:03:01.4]}
2... Nc6 {[%clk 0:02:59.9]} 3. Bc4 {[%clk 0:03:01.6]} 3... Bc5 {[%clk 0:03:00]}
4. O-O {[%clk 0:03:00.9]} 4... Nf6 {[%clk 0:03:00.1]} 5. Nc3 {[%clk 0:03:01.1]}
5... O-O {[%clk 0:02:59.9]} 6. d3 {[%clk 0:03:01.5]} 6... d6 {[%clk 0:03:00.3]}
7. Bg5 {[%clk 0:03:01.6]} 7... h6 {[%clk 0:03:00.7]} 8. Bh4 {[%clk 0:03:01]}
8... Bg4 {[%clk 0:02:59.1]} 9. h3 {[%clk 0:03:00.6]} 9... Be6 {[%clk 0:02:58.2]}
10. Bb3 {[%clk 0:02:59.7]} 10... a6 {[%clk 0:02:54.5]} 11. Re1 {[%clk
0:02:56.2]} 11... b5 {[%clk 0:02:48]} 12. Qd2 {[%clk 0:02:44.3]} 12... Nd4
{[%clk 0:02:47.7]} 13. Nxd4 {[%clk 0:02:43.2]} 13... Bxd4 {[%clk 0:02:47.5]} 14.
Nd5 {[%clk 0:02:41]} 14... Bxd5 {[%clk 0:02:43.6]} 15. Bxd5 {[%clk 0:02:41]}
15... Rb8 {[%clk 0:02:43.6]} 16. c3 {[%clk 0:02:39.4]} 16... Bb6 {[%clk
0:02:41.6]} 17. Rad1 {[%clk 0:02:37.7]} 17... Rc8 {[%clk 0:02:38.4]} 18. Bb7
{[%clk 0:02:33.9]} 18... Rb8 {[%clk 0:02:38.1]} 19. Bxa6 {[%clk 0:02:34.3]}
19... Qe7 {[%clk 0:02:31.7]} 20. Bxb5 {[%clk 0:02:32.1]} 20... Bxf2+ {[%clk
0:02:31.8]} 21. Qxf2 {[%clk 0:02:30.1]} 21... Rxb5 {[%clk 0:02:31.8]} 22. Qd2
{[%clk 0:02:19.4]} 22... Rfb8 {[%clk 0:02:29.6]} 23. b3 {[%clk 0:02:16.8]} 23...
Qe6 {[%clk 0:02:22.2]} 24. Bxf6 {[%clk 0:02:12.6]} 24... Qxf6 {[%clk 0:02:21.9]}
25. d4 {[%clk 0:02:11.2]} 25... exd4 {[%clk 0:02:20.8]} 26. cxd4 {[%clk
0:02:11.5]} 26... Rb4 {[%clk 0:02:19.8]} 27. Rf1 {[%clk 0:02:07.8]} 27... Qg6
{[%clk 0:02:16.8]} 28. Qe3 {[%clk 0:02:04.6]} 28... R4b7 {[%clk 0:02:11.8]} 29.
e5 {[%clk 0:02:03.5]} 29... dxe5 {[%clk 0:02:10.6]} 30. dxe5 {[%clk 0:02:03.6]}
30... Ra8 {[%clk 0:02:05.9]} 31. Rd7 {[%clk 0:02:02.5]} 31... Rxa2 {[%clk
0:02:03.9]} 32. Qf3 {[%clk 0:01:57]} 32... Raa7 {[%clk 0:01:56.3]} 33. Rxf7
{[%clk 0:01:54.4]} 33... Rb8 {[%clk 0:01:52.5]} 34. Qd5 {[%clk 0:01:49.5]} 34...
Kh7 {[%clk 0:01:48.4]} 35. e6 {[%clk 0:01:37.6]} 35... Re8 {[%clk 0:01:39]} 36.
e7 {[%clk 0:01:36.9]} 36... Ra6 {[%clk 0:01:35.2]} 37. Re1 {[%clk 0:01:24.9]}
37... Rd6 {[%clk 0:01:33.2]} 38. Qc4 {[%clk 0:01:20.8]} 38... Rd2 {[%clk
0:01:31]} 39. Rf2 {[%clk 0:01:08.4]} 39... Rxf2 {[%clk 0:01:27]} 40. Kxf2 {[%clk
0:01:08.5]} 40... Qf6+ {[%clk 0:01:25.7]} 41. Kg1 {[%clk 0:01:08.8]} 41... Rxe7
{[%clk 0:01:26]} 42. Qd3+ {[%clk 0:01:05.9]} 42... g6 {[%clk 0:01:18.3]} 43.
Rxe7+ {[%clk 0:01:02.8]} 43... Qxe7 {[%clk 0:01:17.3]} 44. Qc4 {[%clk
0:01:01.9]} 44... Qe3+ {[%clk 0:01:13.4]} 45. Kh2 {[%clk 0:01:01]} 45... Qe5+
{[%clk 0:01:13.4]} 46. Kh1 {[%clk 0:01:01.2]} 46... Qa1+ {[%clk 0:01:13.1]} 47.
Kh2 {[%clk 0:01:01.3]} 47... Qe5+ {[%clk 0:01:13]} 48. Kg1 {[%clk 0:01:01.1]}
48... Qe7 {[%clk 0:01:11.2]} 49. b4 {[%clk 0:00:59.5]} 49... Kg7 {[%clk
0:01:10.7]} 50. b5 {[%clk 0:00:57.4]} 50... Qf7 {[%clk 0:01:10.2]} 51. Qc6
{[%clk 0:00:53.3]} 51... Qe7 {[%clk 0:01:05.2]} 52. Qc3+ {[%clk 0:00:52.1]}
52... Kg8 {[%clk 0:00:59.8]} 53. Qc4+ {[%clk 0:00:52.1]} 53... Kg7 {[%clk
0:00:58.7]} 54. Qd4+ {[%clk 0:00:51.2]} 54... Kg8 {[%clk 0:00:57.1]} 55. Qd5+
{[%clk 0:00:51.4]} 55... Kg7 {[%clk 0:00:56.5]} 56. Qd4+ {[%clk 0:00:48.6]}
56... Qf6 {[%clk 0:00:54.7]} 57. Qc5 {[%clk 0:00:46.2]} 57... Qf7 {[%clk
0:00:53.4]} 58. Qe5+ {[%clk 0:00:45.4]} 58... Kg8 {[%clk 0:00:52.3]} 59. Kh2
{[%clk 0:00:36.6]} 59... g5 {[%clk 0:00:47.6]} 60. Qc5 {[%clk 0:00:33.9]} 60...
Qf4+ {[%clk 0:00:44.2]} 61. Kh1 {[%clk 0:00:33.2]} 61... Qf1+ {[%clk 0:00:42.1]}
62. Kh2 {[%clk 0:00:33.4]} 62... Qf4+ {[%clk 0:00:42.1]} 63. Kh1 {[%clk
0:00:33.9]} 63... Qd6 {[%clk 0:00:41.2]} 64. Qc4+ {[%clk 0:00:32.7]} 64... Kh7
{[%clk 0:00:41.2]} 65. Qc2+ {[%clk 0:00:28.5]} 65... Kg7 {[%clk 0:00:40.7]} 66.
Qc3+ {[%clk 0:00:28.5]} 66... Kg6 {[%clk 0:00:39]} 67. Qc2+ {[%clk 0:00:26.7]}
67... Kf7 {[%clk 0:00:37.4]} 68. Qf2+ {[%clk 0:00:25.8]} 68... Qf6 {[%clk
0:00:35.9]} 69. Qa2+ {[%clk 0:00:24.6]} 69... Kg6 {[%clk 0:00:34.9]} 70. Qc2+
{[%clk 0:00:21.8]} 70... Kh5 {[%clk 0:00:32.8]} 71. Qxc7 {[%clk 0:00:20]} 71...
Qf1+ {[%clk 0:00:32.9]} 72. Kh2 {[%clk 0:00:19.3]} 72... Qxb5 {[%clk 0:00:23]}
73. Qf7+ {[%clk 0:00:18.8]} 73... Kh4 {[%clk 0:00:23.2]} 74. g3# {[%clk
0:00:18.8]} 1-0

[Event "Betsys MČR v online bleskovém šachu 2021"]
[Site "Chess.com"]
[Date "2021.04.17"]
[Round "6"]
[White "tondapesek"]
[Black "polik1112"]
[Result "0-1"]
[WhiteElo "1011"]
[BlackElo "1337"]
[TimeControl "180+1"]
[EndTime "9:58:47 PDT"]
[Termination "Uživatel polik1112 zvítězil matem"]

1. e4 {[%clk 0:02:31.7]} 1... e6 {[%clk 0:02:59.6]} 2. d4 {[%clk 0:02:31.2]}
2... d5 {[%clk 0:02:58.4]} 3. Nc3 {[%clk 0:02:29.3]} 3... Nf6 {[%clk 0:02:56.7]}
4. e5 {[%clk 0:02:29.4]} 4... Nfd7 {[%clk 0:02:56.4]} 5. Nf3 {[%clk 0:02:27.7]}
5... c5 {[%clk 0:02:56.1]} 6. dxc5 {[%clk 0:02:23.2]} 6... Bxc5 {[%clk
0:02:55.2]} 7. Be3 {[%clk 0:02:22.3]} 7... O-O {[%clk 0:02:50.5]} 8. Bd3 {[%clk
0:02:20.6]} 8... Bxe3 {[%clk 0:02:49]} 9. fxe3 {[%clk 0:02:20.2]} 9... Qb6
{[%clk 0:02:48.4]} 10. Qc1 {[%clk 0:02:18.7]} 10... Nc6 {[%clk 0:02:46]} 11. O-O
{[%clk 0:02:10.3]} 11... Ndxe5 {[%clk 0:02:45.1]} 12. Nxe5 {[%clk 0:02:09.3]}
12... Nxe5 {[%clk 0:02:44]} 13. Re1 {[%clk 0:02:07.5]} 13... Bd7 {[%clk
0:02:38.3]} 14. b3 {[%clk 0:02:00.8]} 14... Nxd3 {[%clk 0:02:37.3]} 15. cxd3
{[%clk 0:02:00.7]} 15... Rac8 {[%clk 0:02:36.6]} 16. Qd2 {[%clk 0:02:00.3]}
16... Rc7 {[%clk 0:02:31.7]} 17. Ne2 {[%clk 0:01:58.3]} 17... Rfc8 {[%clk
0:02:30.9]} 18. Nd4 {[%clk 0:01:54.6]} 18... e5 {[%clk 0:02:23]} 19. Nf3 {[%clk
0:01:50.6]} 19... Rc2 {[%clk 0:02:22.1]} 20. Qd1 {[%clk 0:01:47.7]} 20... Qc7
{[%clk 0:02:09.5]} 21. d4 {[%clk 0:01:40]} 21... e4 {[%clk 0:01:58.3]} 22. Ne5
{[%clk 0:01:37.5]} 22... Be6 {[%clk 0:01:39.1]} 23. Re2 {[%clk 0:01:25.8]} 23...
Rc1 {[%clk 0:01:23.4]} 24. Rxc1 {[%clk 0:01:25.2]} 24... Qxc1 {[%clk 0:01:23]}
25. Qxc1 {[%clk 0:01:24.9]} 25... Rxc1+ {[%clk 0:01:23.9]} 26. Kf2 {[%clk
0:01:25.1]} 26... f6 {[%clk 0:01:19.9]} 27. Nf3 {[%clk 0:01:05.5]} 27... exf3
{[%clk 0:01:18.7]} 28. Kxf3 {[%clk 0:01:05.2]} 28... h5 {[%clk 0:01:09.7]} 29.
Kg3 {[%clk 0:01:04.3]} 29... g5 {[%clk 0:01:01.1]} 30. h4 {[%clk 0:01:01.8]}
30... g4 {[%clk 0:00:46.2]} 31. Rf2 {[%clk 0:00:58.5]} 31... Kg7 {[%clk
0:00:45.7]} 32. Kf4 {[%clk 0:00:53.4]} 32... Rc3 {[%clk 0:00:37.6]} 33. Re2
{[%clk 0:00:45.3]} 33... b5 {[%clk 0:00:34.3]} 34. Rf2 {[%clk 0:00:41.1]} 34...
a5 {[%clk 0:00:33.3]} 35. Re2 {[%clk 0:00:39.7]} 35... Kg6 {[%clk 0:00:21.7]}
36. Rf2 {[%clk 0:00:37.3]} 36... Bf5 {[%clk 0:00:21.5]} 37. Re2 {[%clk
0:00:35.8]} 37... Be4 {[%clk 0:00:21.3]} 38. Rd2 {[%clk 0:00:18.3]} 38... a4
{[%clk 0:00:18.7]} 39. bxa4 {[%clk 0:00:17.2]} 39... bxa4 {[%clk 0:00:18.7]} 40.
Rb2 {[%clk 0:00:15]} 40... Rc2 {[%clk 0:00:16]} 41. Rxc2 {[%clk 0:00:14.6]}
41... Bxc2 {[%clk 0:00:15.8]} 42. Kg3 {[%clk 0:00:12.9]} 42... Bb1 {[%clk
0:00:15.5]} 43. a3 {[%clk 0:00:12.7]} 43... Kf5 {[%clk 0:00:15.2]} 44. Kf2
{[%clk 0:00:12.1]} 44... Ke4 {[%clk 0:00:14.4]} 45. Ke2 {[%clk 0:00:10.2]} 45...
f5 {[%clk 0:00:14.1]} 46. Kd2 {[%clk 0:00:09.4]} 46... Ba2 {[%clk 0:00:13.9]}
47. Ke2 {[%clk 0:00:09.4]} 47... Bc4+ {[%clk 0:00:13.7]} 48. Kd2 {[%clk
0:00:09.9]} 48... f4 {[%clk 0:00:12.7]} 49. exf4 {[%clk 0:00:09.8]} 49... Kxf4
{[%clk 0:00:13.6]} 50. Kc3 {[%clk 0:00:09.6]} 50... Ke4 {[%clk 0:00:13]} 51. g3
{[%clk 0:00:10]} 51... Bb3 {[%clk 0:00:12.4]} 52. Kb4 {[%clk 0:00:09.8]} 52...
Kf3 {[%clk 0:00:12.2]} 53. Kc5 {[%clk 0:00:09.8]} 53... Kxg3 {[%clk 0:00:11.9]}
54. Kd6 {[%clk 0:00:09.8]} 54... Kxh4 {[%clk 0:00:11.7]} 55. Ke5 {[%clk
0:00:10.3]} 55... g3 {[%clk 0:00:11.9]} 56. Kf4 {[%clk 0:00:09.4]} 56... g2
{[%clk 0:00:12.3]} 57. Kf3 {[%clk 0:00:09.7]} 57... g1=Q {[%clk 0:00:12]} 58.
Kf4 {[%clk 0:00:10.1]} 58... Qg3+ {[%clk 0:00:11]} 59. Kf5 {[%clk 0:00:09.9]}
59... Bc2+ {[%clk 0:00:09.9]} 60. Ke6 {[%clk 0:00:10.3]} 60... Qg6+ {[%clk
0:00:08.8]} 61. Kd7 {[%clk 0:00:10.2]} 61... Kg5 {[%clk 0:00:07.6]} 62. Kc7
{[%clk 0:00:10.1]} 62... h4 {[%clk 0:00:07.8]} 63. Kd7 {[%clk 0:00:10.1]} 63...
h3 {[%clk 0:00:08.7]} 64. Kc7 {[%clk 0:00:10.4]} 64... h2 {[%clk 0:00:09.6]} 65.
Kb7 {[%clk 0:00:10.9]} 65... h1=Q {[%clk 0:00:09.8]} 66. Kc7 {[%clk 0:00:11.4]}
66... Qhh7+ {[%clk 0:00:09.9]} 67. Kb8 {[%clk 0:00:11.2]} 67... Qgg8# {[%clk
0:00:10.2]} 0-1

[Event "Betsys MČR v online bleskovém šachu 2021"]
[Site "Chess.com"]
[Date "2021.04.17"]
[Round "6"]
[White "PavelNo"]
[Black "MiroslavBucek"]
[Result "1-0"]
[WhiteElo "1971"]
[BlackElo "1617"]
[TimeControl "180+1"]
[EndTime "9:58:59 PDT"]
[Termination "Uživatel PavelNo zvítězil na čas"]

1. e4 {[%clk 0:03:00.9]} 1... e5 {[%clk 0:02:59.8]} 2. Nf3 {[%clk 0:03:00.8]}
2... Nc6 {[%clk 0:02:59.2]} 3. Bb5 {[%clk 0:03:00.3]} 3... a6 {[%clk 0:02:58.7]}
4. Ba4 {[%clk 0:03:00]} 4... Nf6 {[%clk 0:02:58.9]} 5. d4 {[%clk 0:02:59.9]}
5... exd4 {[%clk 0:02:47.4]} 6. O-O {[%clk 0:02:59.4]} 6... Be7 {[%clk 0:02:40]}
7. Re1 {[%clk 0:02:58.9]} 7... O-O {[%clk 0:02:38.8]} 8. e5 {[%clk 0:02:58.4]}
8... Nd5 {[%clk 0:02:37.4]} 9. Bb3 {[%clk 0:02:55.2]} 9... Nb6 {[%clk
0:02:31.6]} 10. Nxd4 {[%clk 0:02:54.4]} 10... Nxd4 {[%clk 0:02:27.5]} 11. Qxd4
{[%clk 0:02:54]} 11... d6 {[%clk 0:02:25.6]} 12. exd6 {[%clk 0:02:52.4]} 12...
Bxd6 {[%clk 0:02:22.3]} 13. Bf4 {[%clk 0:02:51.8]} 13... Bxf4 {[%clk 0:02:19.2]}
14. Qxf4 {[%clk 0:02:50.4]} 14... Qd7 {[%clk 0:01:54.3]} 15. Nc3 {[%clk
0:02:47.6]} 15... Qc6 {[%clk 0:01:45.6]} 16. Rad1 {[%clk 0:02:24.5]} 16... Be6
{[%clk 0:01:44]} 17. Bxe6 {[%clk 0:02:18.1]} 17... fxe6 {[%clk 0:01:43.7]} 18.
Qe5 {[%clk 0:02:11.9]} 18... Rae8 {[%clk 0:01:36.6]} 19. Qe4 {[%clk 0:01:41.9]}
19... Qc5 {[%clk 0:01:30.5]} 20. Re2 {[%clk 0:01:37.8]} 20... c6 {[%clk
0:01:20.3]} 21. Rde1 {[%clk 0:01:16.4]} 21... Nd5 {[%clk 0:01:08.4]} 22. Nxd5
{[%clk 0:01:09.6]} 22... cxd5 {[%clk 0:01:07.6]} 23. Qe3 {[%clk 0:01:04.3]}
23... Qxe3 {[%clk 0:01:04.7]} 24. Rxe3 {[%clk 0:01:03.9]} 24... Rf6 {[%clk
0:01:02.8]} 25. Re5 {[%clk 0:01:03.5]} 25... Ref8 {[%clk 0:00:57.1]} 26. f3
{[%clk 0:01:02.3]} 26... Kf7 {[%clk 0:00:55.1]} 27. Rd1 {[%clk 0:00:59.3]} 27...
Rd8 {[%clk 0:00:51.7]} 28. c3 {[%clk 0:00:57.6]} 28... b5 {[%clk 0:00:50.5]} 29.
a3 {[%clk 0:00:56.8]} 29... g6 {[%clk 0:00:47.3]} 30. Rd4 {[%clk 0:00:54.6]}
30... Rf5 {[%clk 0:00:47]} 31. Re2 {[%clk 0:00:52.5]} 31... e5 {[%clk
0:00:44.8]} 32. Rd1 {[%clk 0:00:52.1]} 32... Ke6 {[%clk 0:00:41.2]} 33. Ra1
{[%clk 0:00:47.8]} 33... g5 {[%clk 0:00:37.7]} 34. a4 {[%clk 0:00:47.6]} 34...
d4 {[%clk 0:00:34.2]} 35. cxd4 {[%clk 0:00:42.8]} 35... Rxd4 {[%clk 0:00:33.3]}
36. axb5 {[%clk 0:00:42.7]} 36... axb5 {[%clk 0:00:33.6]} 37. Ra6+ {[%clk
0:00:41.6]} 37... Rd6 {[%clk 0:00:33.4]} 38. Ra7 {[%clk 0:00:39.6]} 38... h5
{[%clk 0:00:31.5]} 39. Rb7 {[%clk 0:00:39.3]} 39... Rd5 {[%clk 0:00:30.7]} 40.
Rb6+ {[%clk 0:00:37.1]} 40... Kd7 {[%clk 0:00:29.8]} 41. h3 {[%clk 0:00:33.9]}
41... Kc7 {[%clk 0:00:29.4]} 42. Rh6 {[%clk 0:00:32.6]} 42... h4 {[%clk
0:00:28]} 43. Rc2+ {[%clk 0:00:22.2]} 43... Kb7 {[%clk 0:00:24.8]} 44. Rcc6
{[%clk 0:00:14.4]} 44... Rd1+ {[%clk 0:00:20]} 45. Kh2 {[%clk 0:00:14.2]} 45...
Rf7 {[%clk 0:00:19.9]} 46. Rb6+ {[%clk 0:00:12.4]} 46... Ka7 {[%clk 0:00:19.6]}
47. Rxb5 {[%clk 0:00:08.7]} 47... Rb7 {[%clk 0:00:18.1]} 48. Rxb7+ {[%clk
0:00:06.6]} 48... Kxb7 {[%clk 0:00:18.4]} 49. Rg6 {[%clk 0:00:05.3]} 49... Rd2
{[%clk 0:00:16.1]} 50. Rxg5 {[%clk 0:00:04.8]} 50... Rxb2 {[%clk 0:00:16.1]} 51.
Rxe5 {[%clk 0:00:04.5]} 51... Kc6 {[%clk 0:00:16.2]} 52. Re4 {[%clk 0:00:04.6]}
52... Kd5 {[%clk 0:00:15.4]} 53. Rxh4 {[%clk 0:00:04.5]} 53... Ke5 {[%clk
0:00:15.5]} 54. Rh5+ {[%clk 0:00:04.6]} 54... Kf4 {[%clk 0:00:15.1]} 55. Rh4+
{[%clk 0:00:03.5]} 55... Ke3 {[%clk 0:00:14.5]} 56. Rg4 {[%clk 0:00:04]} 56...
Rf2 {[%clk 0:00:13.8]} 57. h4 {[%clk 0:00:04.3]} 57... Ke2 {[%clk 0:00:11.8]}
58. h5 {[%clk 0:00:04.4]} 58... Kf1 {[%clk 0:00:11.7]} 59. h6 {[%clk 0:00:03.6]}
59... Re2 {[%clk 0:00:11.9]} 60. h7 {[%clk 0:00:03.3]} 60... Re8 {[%clk
0:00:11.7]} 61. Rh4 {[%clk 0:00:03.8]} 61... Rh8 {[%clk 0:00:11.1]} 62. g4
{[%clk 0:00:04]} 62... Kf2 {[%clk 0:00:10.9]} 63. g5 {[%clk 0:00:04.3]} 63...
Kxf3 {[%clk 0:00:11.3]} 64. g6 {[%clk 0:00:04.4]} 64... Re8 {[%clk 0:00:03.3]}
65. g7 {[%clk 0:00:04.1]} 65... Re2+ {[%clk 0:00:02.8]} 66. Kh3 {[%clk 0:00:04]}
1-0